bitfinex-derivatives/quotes_ETHF0:USTF0_20250106
["timestamp","ask_amount","ask_price","bid_price","bid_amount"]
[1736147529643,0.70686,3663.1,3662.8,5.39046904]
[1736147529943,0.27307,3662.9,3662.8,3.48087]
[1736147530646,0.27307,3663.0,3662.9,0.27307]
[1736147530846,0.4338,3663.1,3663.0,0.27306]
[1736147531052,1.14666,3663.1,3663.0,0.27306]
[1736147531356,0.8736,3663.1,3663.0,0.27306]
[1736147531642,0.27308,3662.8,3662.7,41.07308]
[1736147532356,0.27308,3662.9,3662.8,0.27308]
[1736147533051,0.8736,3663.1,3662.7,40.8]
[1736147533243,0.27308,3662.8,3662.7,41.07308]
[1736147533439,0.8736,3663.1,3662.7,40.8]
[1736147533651,0.27307,3662.9,3662.8,0.27308]
[1736147533849,0.27307,3663.0,3662.9,0.27307]
[1736147534143,0.8736,3663.1,3662.7,40.8]
[1736147534348,0.8736,3663.1,3663.0,0.27306]
[1736147537652,0.27302,3663.6,3663.5,0.27303]
[1736147538356,0.4301,3663.9,3663.2,5.39046904]
[1736147538556,0.4301,3663.9,3663.8,0.273]
[1736147538762,0.4301,3663.9,3663.8,2.45566904]
[1736147538959,0.4301,3663.9,3663.8,43.25566904]
[1736147539167,0.7031,3663.9,3663.8,40.8]
[1736147539366,0.7031,3663.9,3663.8,41.073]
[1736147539562,0.7031,3663.9,3663.8,40.8]
[1736147539757,0.4301,3663.9,3663.6,0.27301]
[1736147540065,0.27301,3663.7,3663.5,0.27302]
[1736147540263,0.27301,3663.7,3663.5,0.27303]
[1736147540563,0.8605,3663.8,3663.5,0.27303]
[1736147540762,0.8605,3663.8,3663.4,2.18266904]
[1736147540965,0.8605,3663.8,3663.4,0.27303]
[1736147541162,0.27303,3663.5,3663.4,0.27303]
[1736147541563,0.27303,3663.4,3663.3,3.48084]
[1736147541754,0.69483,3663.4,3663.3,0.27304]
[1736147542166,0.27304,3663.3,3663.2,41.07304]
[1736147542370,0.4218,3663.4,3663.3,0.27304]
[1736147543067,0.4218,3663.4,3663.3,2.45570904]
[1736147545262,0.69483,3663.4,3663.3,2.45570904]
[1736147545662,0.27304,3663.3,3663.2,41.07305]
[1736147546264,0.27304,3663.3,3663.2,40.8]
[1736147547074,0.27304,3663.3,3663.2,41.07305]
[1736147547470,0.69484,3663.4,3663.3,0.27304]
[1736147548069,0.4218,3663.4,3663.2,40.8]
[1736147548375,0.27304,3663.3,3663.2,41.07304]
[1736147548562,0.27304,3663.3,3663.2,40.8]
[1736147549064,0.27304,3663.3,3663.2,41.07305]
[1736147549461,0.4218,3663.4,3662.6,4.28741559]
[1736147549660,0.84,3663.2,3662.6,4.28741559]
[1736147549867,0.27309,3662.7,3662.6,4.28741559]
[1736147550061,0.27309,3662.7,3662.6,4.56050559]
[1736147550466,0.27309,3662.7,3662.6,45.36050559]
[1736147550668,0.27309,3662.7,3662.6,45.08741559]
[1736147551066,0.27309,3662.7,3662.6,45.36050559]
[1736147551267,0.27309,3662.7,3662.6,41.07309]
[1736147551466,0.27309,3662.7,3662.6,40.8]
[1736147552069,0.27309,3662.7,3662.6,41.07309]
[1736147552969,0.27309,3662.7,3662.6,40.8]
[1736147555172,2.45575904,3662.7,3662.6,40.8]
[1736147555469,0.27309,3662.7,3662.6,40.8]
[1736147555873,0.27312,3662.2,3662.1,4.56054559]
[1736147556470,0.27312,3662.2,3662.1,41.07313]
[1736147558074,0.27312,3662.2,3662.1,40.8]
[1736147558270,3.2078,3662.3,3661.9,4.28741559]
[1736147558481,2.45580904,3662.0,3661.9,2.93081559]
[1736147558873,2.87320904,3662.0,3661.9,2.93081559]
[1736147559286,0.27317,3661.7,3661.5,0.27317]
[1736147559482,0.4174,3662.0,3661.6,0.27316]
[1736147559679,0.27315,3661.9,3661.7,0.27316]
[1736147559978,0.27315,3661.8,3661.7,0.27316]
[1736147560485,0.27315,3661.8,3661.6,0.27316]
[1736147560780,0.27315,3661.8,3661.5,2.59456904]
[1736147560982,0.27315,3661.8,3661.7,0.27316]
[1736147561374,0.27315,3661.8,3661.6,0.27316]
[1736147561778,0.27318,3661.6,3661.4,40.8]
[1736147561986,0.27318,3661.6,3661.4,41.07318]
[1736147562784,0.27318,3661.5,3661.4,41.07318]
[1736147563079,0.71348,3661.5,3661.4,41.07318]
[1736147563380,0.71348,3661.5,3661.4,40.8]
[1736147563677,0.412,3661.9,3661.5,0.27317]
[1736147563886,0.27318,3661.6,3661.4,41.51558]
[1736147564088,0.27318,3661.5,3661.4,41.51558]
[1736147564281,0.27317,3661.6,3661.4,41.51558]
[1736147564476,0.27318,3661.5,3661.4,41.51558]
[1736147564784,0.71348,3661.5,3661.4,44.72338]
[1736147565084,0.71348,3661.5,3661.4,41.51558]
[1736147565383,0.71348,3661.5,3661.4,44.28098]
[1736147565785,0.71348,3661.5,3661.4,44.0078]
[1736147565984,0.71348,3661.5,3661.4,44.28098]
[1736147566185,0.4403,3661.5,3661.4,44.28098]
[1736147566988,0.4403,3661.5,3661.4,41.07318]
[1736147567186,0.4403,3661.5,3661.0,9.64392356]
[1736147567489,0.2732,3661.3,3661.2,0.2732]
[1736147567687,0.4207,3661.4,3661.0,6.43612356]
[1736147567887,0.2732,3661.2,3661.0,6.70933356]
[1736147568385,0.2732,3661.2,3661.1,40.8]
[1736147568589,0.2732,3661.2,3661.1,41.07321]
[1736147571091,0.4208,3661.3,3661.1,41.07321]
[1736147571092,0.69399,3661.3,3661.1,40.8]
[1736147571290,0.69399,3661.3,3661.2,0.2732]
[1736147573193,0.2732,3661.2,3661.1,41.0732]
[1736147573393,0.2732,3661.2,3661.1,40.8]
[1736147573994,0.2732,3661.2,3661.1,41.07321]
[1736147575085,0.2732,3661.2,3661.1,40.8]
[1736147581390,0.683,3661.2,3660.4,0.4367]
[1736147581692,0.27324,3660.6,3660.5,0.27325]
[1736147582599,0.27324,3660.6,3660.3,46.19046904]
[1736147582600,3.2078,3660.9,3660.3,40.8]
[1736147582785,0.27326,3660.4,3660.3,41.07327]
[1736147586003,0.4331,3660.5,3660.3,40.8]
[1736147586208,0.4331,3660.5,3660.4,0.27326]
[1736147586209,0.70636,3660.5,3660.4,0.27326]
[1736147586503,1.28952167,3661.7,3660.3,51.19046904]
[1736147586504,3.2078,3661.7,3660.3,51.19046904]
[1736147586695,0.8307,3661.9,3661.8,0.27315]
[1736147587099,1.10385,3661.9,3661.8,0.27315]
[1736147587400,0.27316,3661.8,3661.6,0.71897]
[1736147587600,0.27316,3661.7,3661.6,0.27317]
[1736147587800,0.27317,3661.6,3661.5,0.68897]
[1736147588597,0.8307,3661.9,3661.5,41.48897]
[1736147588803,0.27317,3661.7,3661.5,41.48897]
[1736147589004,0.27317,3661.6,3661.5,41.48897]
[1736147589703,0.27317,3661.6,3661.5,41.2158]
[1736147589898,0.27317,3661.6,3661.5,40.8]
[1736147590101,0.27317,3661.6,3661.2,2.18266904]
[1736147590102,0.8307,3661.9,3661.2,2.18266904]
[1736147590299,0.8307,3661.9,3661.1,0.4135]
[1736147590300,0.2732,3661.3,3661.1,0.6867]
[1736147590695,0.2732,3661.3,3661.1,41.4867]
[1736147591107,0.27319,3661.4,3661.2,0.27319]
[1736147591808,0.27319,3661.4,3661.1,41.2135]
[1736147592100,0.27318,3661.5,3661.3,0.27319]
[1736147592408,0.27318,3661.5,3661.4,0.27318]
[1736147593202,0.8307,3661.9,3661.2,2.18266904]
[1736147593407,0.27316,3661.7,3661.3,3.2078]
[1736147593911,0.27316,3661.7,3661.5,0.27317]
[1736147594508,0.27316,3661.7,3661.6,0.27317]
[1736147594710,0.8307,3661.9,3661.3,3.2078]
[1736147594999,0.27317,3661.6,3661.5,0.27317]
[1736147595197,0.27316,3661.7,3661.5,0.27317]
[1736147596198,0.27317,3661.6,3661.5,0.27317]
[1736147596704,0.27318,3661.4,3661.3,3.2078]
[1736147597208,0.68289,3661.8,3660.8,5.39046904]
[1736147597405,0.27321,3661.0,3660.8,0.27322]
[1736147597805,0.27321,3661.0,3660.9,47.23612356]
[1736147598005,0.27321,3661.0,3660.9,6.43612356]
[1736147598912,0.27324,3660.7,3660.6,40.8]
[1736147605416,0.68444,3660.7,3660.6,40.8]
[1736147607723,1.13254,3660.7,3660.6,40.8]
[1736147609323,0.8593,3660.7,3659.9,11.8265926]
[1736147609512,0.27329,3660.0,3659.9,9.64392356]
[1736147609712,0.27329,3660.0,3659.9,6.43612356]
[1736147610019,0.27329,3660.0,3659.9,40.8]
[1736147610518,3.2078,3660.0,3659.8,6.43612356]
[1736147610723,0.6851,3659.9,3659.8,6.43612356]
[1736147611325,0.6851,3659.9,3659.6,40.8]
[1736147611326,0.27331,3659.7,3659.6,40.8]
[1736147611513,0.4118,3659.9,3659.2,6.43612356]
[1736147611514,2.59446904,3659.9,3659.2,6.43612356]
[1736147611715,0.27334,3659.3,3659.2,6.43612356]
[1736147611920,2.45600904,3659.3,3659.2,6.43612356]
[1736147612422,2.45600904,3659.3,3659.2,4.47434356]
[1736147612618,2.88450904,3659.3,3659.2,2.40034357]
[1736147612817,2.88450904,3659.3,3659.2,1.72636357]
[1736147613025,2.88450904,3659.3,3659.2,1.09878357]
[1736147613329,0.27341,3658.3,3658.2,1.37897357]
[1736147613516,0.27341,3658.3,3658.2,0.50997357]
[1736147613716,2.45607904,3658.3,3658.2,0.50997357]
[1736147613920,2.88457904,3658.3,3658.2,0.50997357]
[1736147614827,2.88457904,3658.3,3657.8,10.6858642]
[1736147614828,0.4285,3658.3,3657.8,10.6858642]
[1736147615123,0.27346,3657.7,3657.5,3.92957]
[1736147615312,0.27343,3658.1,3657.8,0.27345]
[1736147615513,3.48123,3658.2,3657.9,2.45610904]
[1736147615821,0.27343,3658.2,3657.9,2.45610904]
[1736147616124,0.27343,3658.1,3657.9,2.45610904]
[1736147616329,0.4285,3658.3,3657.9,2.18266904]
[1736147616618,0.27345,3657.9,3657.7,0.27346]
[1736147616822,0.27345,3657.9,3657.6,2.45612904]
[1736147617023,0.27345,3657.9,3657.6,2.18266904]
[1736147617225,0.27345,3657.8,3657.6,2.18266904]
[1736147617420,0.27345,3657.9,3657.6,2.45612904]
[1736147617623,0.4285,3658.3,3657.6,2.18266904]
[1736147617924,3.2078,3658.7,3657.9,0.27344]
[1736147618223,0.27343,3658.2,3657.7,40.8]
[1736147618425,3.2078,3658.7,3657.9,2.18266904]
[1736147618722,0.27341,3658.4,3657.9,2.18266904]
[1736147618919,0.27341,3658.4,3658.1,0.27343]
[1736147619115,3.2078,3658.7,3657.9,2.18266904]
[1736147619311,0.27341,3658.4,3658.1,0.27342]
[1736147619526,0.2734,3658.5,3658.2,0.27342]
[1736147619829,0.2734,3658.5,3658.3,0.4318]
[1736147620020,0.27341,3658.5,3658.3,0.4318]
[1736147620213,0.27341,3658.4,3658.3,0.4318]
[1736147620724,3.2078,3658.7,3658.3,0.4318]
[1736147621024,3.48119,3658.7,3658.4,0.2734]
[1736147621226,0.27339,3658.6,3658.4,0.2734]
[1736147621523,0.27339,3658.6,3658.3,1.11971]
[1736147621724,0.27339,3658.6,3658.3,0.8463]
[1736147621922,3.2078,3658.7,3658.3,1.11971]
[1736147622223,0.2734,3658.6,3658.3,1.11971]
[1736147622426,0.2734,3658.5,3658.3,0.8463]
[1736147623020,3.2078,3658.7,3658.3,0.8463]
[1736147623327,3.48118,3658.7,3658.4,0.2734]
[1736147623619,0.2734,3658.6,3658.5,40.8]
[1736147626426,0.4279,3659.0,3658.5,40.8]
[1736147626622,0.27339,3658.7,3658.5,41.0734]
[1736147627030,0.27337,3658.9,3658.7,0.27338]
[1736147627722,0.27337,3659.0,3658.7,0.27338]
[1736147627919,2.18266904,3659.9,3658.7,3.2078]
[1736147628118,0.27333,3659.4,3658.9,0.27337]
[1736147628324,0.27333,3659.4,3659.2,0.27334]
[1736147628526,0.27333,3659.4,3659.3,0.4292]
[1736147644632,0.27333,3659.4,3659.3,0.70254]
[1736147644831,0.27333,3659.4,3659.3,0.4292]
[1736147646632,0.27333,3659.4,3659.3,0.70254]
[1736147649730,0.27333,3659.4,3659.3,0.4292]
[1736147650232,0.68983,3659.4,3659.3,0.4292]
[1736147650430,1.11573,3659.4,3659.3,0.4292]
[1736147650828,0.8424,3659.4,3659.1,0.27335]
[1736147651035,0.27335,3659.2,3659.1,0.27335]
[1736147651922,0.8424,3659.4,3658.9,3.6531]
[1736147652127,0.27336,3659.0,3658.9,3.6531]
[1736147653231,0.27336,3659.0,3658.9,3.2078]
[1736147654122,0.27338,3658.7,3658.6,0.27339]
[1736147654527,0.27338,3658.8,3658.7,0.27338]
[1736147654730,0.4153,3658.9,3658.7,0.27338]
[1736147654933,0.27338,3658.8,3658.7,0.27338]
[1736147655542,0.68867,3658.9,3658.7,0.27338]
[1736147655730,0.27338,3658.8,3658.7,0.27338]
[1736147657838,0.4153,3658.9,3658.5,40.8]
[1736147658436,0.27338,3658.8,3658.7,0.27338]
[1736147658633,2.11630046,3659.2,3658.5,42.98266904]
[1736147658830,0.27335,3659.1,3658.9,0.27336]
[1736147659025,0.27335,3659.1,3659.0,0.4136]
[1736147659931,4.0502,3659.4,3658.5,40.8]
[1736147660138,0.27337,3658.9,3658.8,0.27337]
[1736147660936,4.0502,3659.4,3658.6,0.4315]
[1736147661133,6.16650046,3659.4,3658.6,0.4315]
[1736147661340,0.27335,3659.3,3659.2,0.27334]
[1736147661832,2.95870046,3659.4,3658.8,3.2078]
[1736147662037,0.27335,3659.2,3659.1,0.27335]
[1736147662240,2.95870046,3659.4,3658.9,0.4473]
[1736147662440,0.27336,3659.1,3659.0,0.27336]
[1736147662832,0.27336,3659.0,3658.9,0.27337]
[1736147663034,0.8424,3659.4,3658.8,3.48117]
[1736147663338,0.27337,3658.9,3658.8,3.2078]
[1736147663528,0.27337,3658.9,3658.8,3.48118]
[1736147663732,0.8424,3659.4,3658.8,3.2078]
[1736147663932,0.27337,3659.0,3658.9,0.27337]
[1736147664231,0.27336,3659.0,3658.9,0.27337]
[1736147664832,0.27336,3659.1,3659.0,0.27336]
[1736147665643,0.27337,3659.0,3658.9,0.27337]
[1736147666036,0.27336,3659.1,3659.0,0.27336]
[1736147666440,0.27337,3659.0,3658.9,0.27337]
[1736147666645,2.38964046,3659.3,3659.2,0.27335]
[1736147667145,2.11630046,3659.3,3659.2,0.27335]
[1736147667337,2.11630046,3659.3,3659.2,3.48115]
[1736147667845,2.11630046,3659.3,3659.2,44.28115]
[1736147668042,0.27331,3659.7,3659.6,0.27332]
[1736147668542,0.68841,3659.7,3659.6,0.27332]
[1736147668744,0.4151,3659.7,3659.3,0.4154]
[1736147668943,0.68841,3659.7,3659.6,0.27332]
[1736147669146,2.80471046,3659.7,3659.6,0.27332]
[1736147669747,2.53140046,3659.7,3659.6,0.27332]
[1736147669942,2.11630046,3659.7,3659.6,0.27332]
[1736147670541,2.11630046,3659.9,3659.8,0.2733]
[1736147671348,3.19495561,3660.0,3659.8,5.0]
[1736147671557,4.24176595,3660.2,3659.9,2.18266904]
[1736147671848,4.24176595,3660.2,3660.1,3.48108]
[1736147672351,3.65166884,3660.6,3660.1,3.2078]
[1736147672547,3.65166884,3660.6,3660.5,0.27325]
[1736147674249,0.4352,3660.7,3660.3,6.43650237]
[1736147674441,0.4352,3660.7,3660.6,0.27324]
[1736147677644,0.70844,3660.7,3660.6,0.27324]
[1736147677952,0.4352,3660.7,3660.6,0.27324]
[1736147678850,0.70844,3660.7,3660.6,0.27324]
[1736147679050,0.4352,3660.7,3660.6,0.27324]
[1736147685355,0.70844,3660.7,3660.6,0.27324]
[1736147685551,0.27325,3660.6,3660.5,0.27324]
[1736147686057,0.27326,3660.4,3660.3,0.27326]
[1736147686256,0.27327,3660.3,3660.2,0.27327]
[1736147686654,0.4121,3660.4,3660.3,0.27326]
[1736147686959,0.68536,3660.4,3660.3,0.27326]
[1736147687256,0.4121,3660.4,3660.1,40.8]
[1736147687451,0.27327,3660.2,3660.1,41.07328]
[1736147688856,0.27327,3660.2,3660.1,40.8]
[1736147689960,0.2733,3659.9,3659.8,0.2733]
[1736147691157,0.2733,3659.8,3659.7,0.2733]
[1736147691361,1.1641,3659.8,3659.7,0.2733]
[1736147693771,0.8908,3659.8,3659.7,0.2733]
[1736147694368,0.8908,3659.8,3659.7,2.45596904]
[1736147695163,0.8908,3659.8,3659.7,0.2733]
[1736147695665,1.3301,3659.8,3659.7,0.2733]
[1736147696764,1.3301,3659.8,3659.7,3.4811]
[1736147697372,1.3301,3659.8,3659.7,0.2733]
[1736147699971,1.3301,3659.8,3659.5,44.0078]
[1736147700167,0.27332,3659.6,3659.5,44.28112]
[1736147700969,0.27331,3659.7,3659.6,0.27331]
[1736147701170,1.3301,3659.8,3659.5,44.0078]
[1736147701472,0.27332,3659.6,3659.5,44.28112]
[1736147701867,1.60341,3659.8,3659.7,0.27331]
[1736147702271,1.3301,3659.8,3659.7,0.27331]
[1736147702668,1.3301,3659.8,3659.5,44.0078]
[1736147702869,0.27332,3659.7,3659.6,0.27331]
[1736147703169,1.3301,3659.8,3659.5,44.0078]
[1736147703769,1.3301,3659.8,3659.5,40.8]
[1736147703976,0.27332,3659.6,3659.5,40.8]
[1736147705272,0.27335,3659.2,3659.1,3.48115]
[1736147705473,0.27335,3659.2,3659.1,3.2078]
[1736147705677,0.27335,3659.2,3659.1,40.8]
[1736147706171,0.27337,3658.9,3658.8,4.27990447]
[1736147706675,0.27337,3658.9,3658.8,45.07990447]
[1736147707269,0.8714,3659.1,3658.8,45.07990447]
[1736147707576,0.27337,3659.0,3658.9,0.27337]
[1736147707878,0.27337,3658.9,3658.8,40.8]
[1736147712476,0.27339,3658.6,3658.5,2.45606904]
[1736147712679,0.27339,3658.6,3658.2,7.48770447]
[1736147712875,0.439,3658.5,3658.3,40.8]
[1736147713483,0.439,3658.5,3658.4,0.27341]
[1736147714376,0.27341,3658.4,3658.3,41.07341]
[1736147714574,0.439,3658.4,3658.1,4.27990447]
[1736147714774,0.27342,3658.2,3658.1,4.27990447]
[1736147715173,0.27342,3658.2,3658.1,3.60110447]
[1736147716176,3.6366,3658.3,3657.4,11.46704627]
[1736147716374,3.6366,3658.3,3657.5,0.27347]
[1736147716574,0.27347,3657.6,3657.4,3.48128]
[1736147716775,3.6366,3658.3,3657.4,3.2078]
[1736147717071,0.27347,3657.5,3657.4,3.2078]
[1736147718175,3.89142,3657.9,3657.1,2.93202575]
[1736147718385,0.27349,3657.3,3657.2,0.2735]
[1736147718980,0.4204,3657.7,3657.0,3.2078]
[1736147719181,0.4415,3657.2,3657.0,3.2078]
[1736147719385,0.4411,3657.1,3657.0,3.48131]
[1736147719589,0.4411,3657.1,3657.0,3.2078]
[1736147719783,0.7146,3657.1,3657.0,3.2078]
[1736147720284,0.7146,3657.1,3656.4,6.43650237]
[1736147720285,8.6489,3657.1,3656.4,6.43650237]
[1736147720587,0.27355,3656.5,3656.4,6.43650237]
[1736147720784,3.2078,3656.7,3656.4,40.8]
[1736147721089,0.4204,3657.0,3656.6,3.2078]
[1736147721281,0.27352,3656.9,3656.7,2.18266904]
[1736147721487,0.4204,3657.0,3656.6,3.2078]
[1736147721684,2.18266904,3656.9,3656.5,0.4078]
[1736147721879,0.27355,3656.5,3656.4,40.8]
[1736147723786,0.4517,3656.5,3655.8,3.2078]
[1736147723984,0.4392,3656.4,3655.8,3.2078]
[1736147724184,0.4392,3656.4,3655.9,40.8]
[1736147724386,0.27359,3656.0,3655.9,40.8]
[1736147724584,0.27358,3656.1,3655.9,40.8]
[1736147724786,0.4392,3656.4,3655.9,40.8]
[1736147725695,0.27358,3656.1,3655.9,40.8]
[1736147727693,0.4129,3656.0,3655.9,40.8]
[1736147728190,0.4129,3656.0,3655.9,41.07359]
[1736147728990,0.4392,3656.4,3655.9,40.8]
[1736147729290,0.4517,3656.5,3655.8,3.2078]
[1736147729486,0.4199,3656.9,3656.6,0.27354]
[1736147729788,3.2078,3657.1,3657.0,0.27351]
[1736147730094,3.30791904,3657.8,3657.5,0.27347]
[1736147730282,2.62156904,3657.8,3657.0,3.2078]
[1736147730487,0.4389,3657.8,3657.7,0.27346]
[1736147731692,5.39046904,3658.1,3657.7,0.27346]
[1736147731890,3.2078,3658.1,3657.9,0.27344]
[1736147732293,3.48123,3658.1,3657.5,3.2078]
[1736147732594,3.48123,3658.1,3657.8,0.27345]
[1736147732988,3.2078,3658.1,3657.9,0.27344]
[1736147733892,3.69736904,3658.4,3658.3,0.27342]
[1736147733893,0.4307,3658.4,3658.3,0.27342]
[1736147737292,0.4307,3658.4,3658.2,0.27342]
[1736147737686,3.2078,3658.5,3658.1,2.18266904]
[1736147737892,3.2078,3659.5,3658.4,5.39046904]
[1736147738091,0.27334,3659.4,3658.9,0.27337]
[1736147738395,0.27333,3659.4,3659.1,0.27335]
[1736147739299,0.27333,3659.5,3659.1,0.27335]
[1736147739497,1.11801,3659.8,3659.4,0.27333]
[1736147739691,1.11801,3659.8,3658.9,42.98266904]
[1736147739692,0.27332,3659.6,3658.9,42.98266904]
[1736147740093,0.27332,3659.7,3659.4,0.27333]
[1736147740595,0.8447,3659.8,3658.9,42.98266904]
[1736147740795,0.27333,3659.5,3659.2,0.27335]
[1736147740998,0.8447,3659.8,3658.9,42.98266904]
[1736147741199,0.27331,3659.7,3659.3,0.27333]
[1736147741698,0.27332,3659.6,3659.3,0.27333]
[1736147742292,3.2078,3659.5,3658.8,3.2078]
[1736147742896,0.27335,3659.2,3658.9,0.27337]
[1736147743293,0.27335,3659.3,3658.9,0.27337]
[1736147744697,0.27333,3659.4,3658.9,0.27337]
[1736147744999,3.2078,3659.5,3659.3,0.27334]
[1736147745200,3.2078,3659.5,3659.4,0.27333]
[1736147745392,3.2078,3659.5,3659.3,0.27334]
[1736147745900,3.2078,3659.5,3658.8,3.2078]
[1736147746095,3.2078,3659.5,3659.3,0.27333]
[1736147746289,0.27334,3659.4,3659.1,0.27335]
[1736147746492,3.2078,3659.5,3658.9,0.27337]
[1736147746695,3.2078,3659.5,3659.4,0.27333]
[1736147746896,3.48113,3659.5,3659.3,0.27334]
[1736147747104,3.2078,3659.5,3659.4,0.27333]
[1736147747403,3.2078,3659.5,3658.5,2.18266904]
[1736147747700,3.2078,3659.5,3658.6,0.8641]
[1736147748002,0.27333,3659.5,3659.1,0.27335]
[1736147748708,0.8447,3659.8,3659.1,0.27335]
[1736147748709,0.27334,3659.3,3659.1,0.27335]
[1736147749599,0.27335,3659.2,3658.8,5.39046904]
[1736147749900,0.27337,3658.9,3658.8,3.2078]
[1736147750206,0.27339,3658.7,3658.5,0.2734]
[1736147750394,3.2078,3659.6,3658.4,3.2078]
[1736147750595,0.27338,3658.8,3658.6,0.27339]
[1736147750997,0.27338,3658.8,3658.5,0.2734]
[1736147751200,0.68332,3659.5,3658.4,3.2078]
[1736147751404,0.27339,3658.7,3658.5,0.2734]
[1736147751606,0.27339,3658.7,3658.6,40.8]
[1736147751996,0.27339,3658.6,3658.4,3.2078]
[1736147752205,0.27339,3658.6,3658.4,3.48121]
[1736147752402,0.27339,3658.6,3658.5,40.8]
[1736147752604,0.27339,3658.7,3658.5,41.07339]
[1736147752906,0.27339,3658.6,3658.5,40.8]
[1736147753397,3.2078,3658.8,3658.0,3.2078]
[1736147753598,0.27343,3658.1,3658.0,3.2078]
[1736147753903,0.27343,3658.1,3658.0,44.0078]
[1736147754301,0.27343,3658.1,3658.0,44.28124]
[1736147755198,0.4421,3658.4,3658.0,44.0078]
[1736147755399,0.27342,3658.3,3658.1,0.27342]
[1736147755601,0.27342,3658.2,3658.0,3.2078]
[1736147755901,0.4517,3658.3,3658.0,3.2078]
[1736147756203,0.4517,3658.3,3658.0,44.0078]
[1736147756402,0.4517,3658.3,3658.2,0.27342]
[1736147756592,0.4517,3658.3,3658.0,44.0078]
[1736147756593,0.27343,3658.1,3658.0,44.0078]
[1736147757103,0.72512,3658.3,3658.1,0.27343]
[1736147757303,0.4517,3658.3,3658.0,44.0078]
[1736147757504,0.4517,3658.3,3658.1,0.27343]
[1736147757505,0.72512,3658.3,3658.1,0.27343]
[1736147757696,0.72512,3658.3,3658.0,44.0078]
[1736147757697,0.4517,3658.3,3658.2,0.27342]
[1736147758207,1.14169,3658.7,3658.0,44.0078]
[1736147758399,0.2734,3658.5,3658.3,0.27341]
[1736147759510,0.2734,3658.5,3658.1,0.4351]
[1736147759807,0.2734,3658.5,3658.3,0.27341]
[1736147760501,0.27341,3658.4,3658.3,0.27341]
[1736147760706,0.27342,3658.2,3658.1,0.27343]
[1736147761006,0.4462,3658.6,3657.9,0.27344]
[1736147761204,0.27344,3658.0,3657.9,0.27344]
[1736147761405,0.27344,3658.0,3657.9,41.07344]
[1736147761706,0.27344,3658.0,3657.9,0.27344]
[1736147762100,0.68283,3658.1,3658.0,0.27344]
[1736147762405,0.27344,3658.0,3657.9,0.27344]
[1736147762802,0.4094,3658.1,3657.7,41.07345]
[1736147762803,0.27345,3657.9,3657.7,41.07345]
[1736147763002,0.4094,3658.1,3657.7,41.07345]
[1736147763312,0.4094,3658.1,3657.6,3.2078]
[1736147763608,0.4094,3658.1,3657.5,0.27347]
[1736147763609,0.27347,3657.6,3657.5,0.27347]
[1736147763808,0.27347,3657.6,3657.5,41.07347]
[1736147764008,0.27349,3657.3,3657.2,3.2078]
[1736147764197,0.27351,3657.0,3656.8,6.67305401]
[1736147764401,0.4495,3657.2,3656.8,47.19953401]
[1736147764598,0.4495,3657.2,3656.7,3.2078]
[1736147765005,0.4495,3657.2,3656.7,3.48133]
[1736147765006,0.27352,3656.9,3656.7,3.48133]
[1736147765310,0.27353,3656.8,3656.7,3.48133]
[1736147765606,0.27352,3656.9,3656.8,0.27352]
[1736147766402,0.27352,3656.9,3656.7,3.48133]
[1736147767410,0.27352,3657.0,3656.8,0.27352]
[1736147768208,0.4495,3657.2,3656.7,44.0078]
[1736147768404,3.6573,3657.2,3656.7,40.8]
[1736147768611,3.6573,3657.2,3656.3,3.2078]
[1736147768612,2.18266904,3656.8,3656.3,3.2078]
[1736147768809,0.27356,3656.4,3656.3,3.2078]
[1736147769003,0.27356,3656.5,3656.3,3.2078]
[1736147769203,0.27356,3656.4,3656.3,3.2078]
[1736147770109,0.8791,3656.7,3656.2,40.80286261]
[1736147770407,0.69516,3656.3,3656.2,40.80286261]
[1736147770612,0.69516,3656.3,3656.2,0.00286261]
[1736147772118,3.2078,3657.2,3656.3,0.27356]
[1736147772408,0.27354,3656.6,3656.2,0.00286261]
[1736147772711,0.27354,3656.6,3656.4,0.27355]
[1736147773115,0.27355,3656.5,3656.3,0.27356]
[1736147773306,0.4106,3656.9,3656.2,0.44186261]
[1736147773515,0.27356,3656.3,3656.2,0.00286261]
[1736147775106,0.71126,3656.3,3656.2,0.00286261]
[1736147775609,1.13426,3656.3,3656.2,0.00286261]
[1736147777617,1.13426,3656.3,3655.4,40.8]
[1736147777618,0.27362,3655.5,3655.4,40.8]
[1736147778109,6.47346904,3656.0,3655.4,42.98266904]
[1736147778110,0.2736,3655.9,3655.4,42.98266904]
[1736147778315,3.2078,3656.0,3655.4,43.85556904]
[1736147778615,0.2736,3655.9,3655.4,43.85556904]
[1736147778810,3.2078,3656.0,3655.4,43.85556904]
[1736147779018,3.2078,3656.0,3655.9,0.27359]
[1736147779708,3.2078,3656.0,3655.4,3.05556904]
[1736147779709,0.2736,3655.9,3655.6,0.27361]
[1736147780314,0.2736,3655.9,3655.7,41.07361]
[1736147780913,3.2078,3656.0,3655.9,0.27359]
[1736147781117,3.2078,3656.0,3655.7,42.98266904]
[1736147781321,3.2078,3656.0,3655.7,43.25626904]
[1736147781624,3.2078,3656.0,3655.8,0.2736]
[1736147781814,3.48139,3656.0,3655.7,42.98266904]
[1736147782012,0.27359,3656.0,3655.8,0.2736]
[1736147782415,0.2736,3655.8,3655.7,42.98266904]
[1736147782618,0.2736,3655.8,3655.7,40.8]
[1736147783509,0.2736,3655.8,3655.7,0.27361]
[1736147783717,0.2736,3655.8,3655.6,0.27361]
[1736147784014,0.8607,3656.3,3655.4,3.05556904]